[Event "*** Titled Tuesday Blitz"]
[Site "Chess.com"]
[Date "2020.05.12"]
[Round "7"]
[White "Funkmaus"]
[Black "Isajevsky_Anton"]
[Result "0-1"]
[WhiteElo "2216"]
[BlackElo "2392"]
[TimeControl "180+1"]
[EndTime "11:17:48 PDT"]
[Termination "Isajevsky_Anton won by checkmate"]

1. d4 {[%clk 0:03:00.9]} 1... f5 {[%clk 0:02:59.2]} 2. Bg5 {[%clk 0:02:59.4]}
2... g6 {[%clk 0:02:58.7]} 3. h4 {[%clk 0:02:54.3]} 3... Bg7 {[%clk 0:02:58.5]}
4. Nf3 {[%clk 0:02:53.1]} 4... d6 {[%clk 0:02:51.6]} 5. e3 {[%clk 0:02:52.7]}
5... h6 {[%clk 0:02:48.5]} 6. Bf4 {[%clk 0:02:51.7]} 6... Nf6 {[%clk 0:02:48.9]}
7. c3 {[%clk 0:02:51.7]} 7... Nc6 {[%clk 0:02:45.6]} 8. Nbd2 {[%clk 0:02:52]}
8... Nh5 {[%clk 0:02:43.7]} 9. Bh2 {[%clk 0:02:49.3]} 9... e5 {[%clk 0:02:42.9]}
10. dxe5 {[%clk 0:02:48.2]} 10... dxe5 {[%clk 0:02:31.7]} 11. Nc4 {[%clk
0:02:35.9]} 11... Qe7 {[%clk 0:02:30]} 12. Be2 {[%clk 0:02:29.8]} 12... O-O
{[%clk 0:01:32.3]} 13. Qc2 {[%clk 0:02:20.3]} 13... b5 {[%clk 0:01:24.6]} 14.
Ncd2 {[%clk 0:02:03.9]} 14... Rb8 {[%clk 0:01:20.8]} 15. a4 {[%clk 0:01:50.2]}
15... b4 {[%clk 0:01:18.7]} 16. Bc4+ {[%clk 0:01:47.7]} 16... Kh8 {[%clk
0:01:16.2]} 17. O-O {[%clk 0:01:37.5]} 17... Nf6 {[%clk 0:00:54.5]} 18. Bb5
{[%clk 0:01:30.2]} 18... Bb7 {[%clk 0:00:35.3]} 19. Bxc6 {[%clk 0:01:24.8]}
19... Bxc6 {[%clk 0:00:36.2]} 20. Nxe5 {[%clk 0:01:24.7]} 20... Be8 {[%clk
0:00:36.7]} 21. Ndf3 {[%clk 0:01:17.8]} 21... Ng4 {[%clk 0:00:23.2]} 22. Bg3
{[%clk 0:01:02.8]} 22... Nxe5 {[%clk 0:00:21.8]} 23. Bxe5 {[%clk 0:01:03.7]}
23... Bxe5 {[%clk 0:00:21.3]} 24. Nxe5 {[%clk 0:01:02.5]} 24... Qxe5 {[%clk
0:00:22.2]} 25. Rad1 {[%clk 0:00:57.4]} 25... c5 {[%clk 0:00:20]} 26. Rd2 {[%clk
0:00:46.5]} 26... Bc6 {[%clk 0:00:18.9]} 27. Rfd1 {[%clk 0:00:43.6]} 27... Qe4
{[%clk 0:00:14.3]} 28. Qxe4 {[%clk 0:00:39.6]} 28... Bxe4 {[%clk 0:00:15.2]} 29.
Rd7 {[%clk 0:00:34.3]} 29... a5 {[%clk 0:00:11.2]} 30. R1d6 {[%clk 0:00:27.5]}
30... Rg8 {[%clk 0:00:09.5]} 31. h5 {[%clk 0:00:24.5]} 31... f4 {[%clk
0:00:08.6]} 32. exf4 {[%clk 0:00:21.9]} 32... c4 {[%clk 0:00:08.7]} 33. f3
{[%clk 0:00:18.3]} 33... Bf5 {[%clk 0:00:08.9]} 34. Re7 {[%clk 0:00:16.6]} 34...
Rbd8 {[%clk 0:00:08.3]} 35. Ra6 {[%clk 0:00:14.6]} 35... Rde8 {[%clk 0:00:08.3]}
36. Rc7 {[%clk 0:00:13.9]} 36... Rc8 {[%clk 0:00:07.6]} 37. Re7 {[%clk
0:00:13.6]} 37... bxc3 {[%clk 0:00:07.9]} 38. bxc3 {[%clk 0:00:12.8]} 38... Rce8
{[%clk 0:00:06.4]} 39. Rc7 {[%clk 0:00:11.9]} 39... Rc8 {[%clk 0:00:05.9]} 40.
Re7 {[%clk 0:00:11.8]} 40... Rg7 {[%clk 0:00:06.8]} 41. Re5 {[%clk 0:00:08.8]}
41... Bd3 {[%clk 0:00:03.7]} 42. Kh2 {[%clk 0:00:08.8]} 42... Kh7 {[%clk
0:00:03.3]} 43. hxg6+ {[%clk 0:00:08.8]} 43... Bxg6 {[%clk 0:00:03.2]} 44. Rexa5
{[%clk 0:00:09.6]} 44... Bd3 {[%clk 0:00:03]} 45. Ra7 {[%clk 0:00:09.4]} 45...
Rg8 {[%clk 0:00:02.6]} 46. R7a6 {[%clk 0:00:08.8]} 46... Rxg2+ {[%clk
0:00:02.2]} 47. Kh3 {[%clk 0:00:09.7]} 47... R2g3+ {[%clk 0:00:02.3]} 48. Kh4
{[%clk 0:00:10.1]} 48... Rxf3 {[%clk 0:00:02.5]} 49. Ra7+ {[%clk 0:00:09.1]}
49... Kh8 {[%clk 0:00:02.7]} 50. Rh5 {[%clk 0:00:07.9]} 50... Rxf4+ {[%clk
0:00:02.7]} 51. Kh3 {[%clk 0:00:07.5]} 51... Rf6 {[%clk 0:00:03.3]} 52. a5
{[%clk 0:00:06.7]} 52... Bf1+ {[%clk 0:00:03.7]} 53. Kh2 {[%clk 0:00:06.3]}
53... Rg2+ {[%clk 0:00:04.2]} 54. Kh1 {[%clk 0:00:06.2]} 54... Ra2 {[%clk
0:00:04.1]} 55. Ra8+ {[%clk 0:00:06.2]} 55... Kg7 {[%clk 0:00:03.8]} 56. Ra7+
{[%clk 0:00:07.1]} 56... Kg6 {[%clk 0:00:04.2]} 57. Rh4 {[%clk 0:00:05.6]} 57...
Bg2+ {[%clk 0:00:04.5]} 58. Kh2 {[%clk 0:00:05.3]} 58... h5 {[%clk 0:00:04.9]}
59. Rd4 {[%clk 0:00:04.7]} 59... Bf3+ {[%clk 0:00:05.1]} 60. Kg3 {[%clk
0:00:04.3]} 60... Bg4 {[%clk 0:00:05.5]} 61. Rd8 {[%clk 0:00:04.1]} 61... Rf3+
{[%clk 0:00:05.2]} 62. Kh4 {[%clk 0:00:03.6]} 62... Rh2# {[%clk 0:00:05.7]} 0-1

[Event "*** Titled Tuesday Blitz"]
[Site "Chess.com"]
[Date "2020.05.12"]
[Round "7"]
[White "GelmanAlexander"]
[Black "VerdeNotte"]
[Result "0-1"]
[WhiteElo "2580"]
[BlackElo "2885"]
[TimeControl "180+1"]
[EndTime "11:17:50 PDT"]
[Termination "VerdeNotte won on time"]

1. c4 {[%clk 0:03:00.9]} 1... g6 {[%clk 0:02:58.2]} 2. Nf3 {[%clk 0:03:00.2]}
2... Bg7 {[%clk 0:02:58.5]} 3. e3 {[%clk 0:02:59.4]} 3... c5 {[%clk 0:02:56.7]}
4. Be2 {[%clk 0:02:59.4]} 4... Nf6 {[%clk 0:02:56.8]} 5. d3 {[%clk 0:02:59.5]}
5... Nc6 {[%clk 0:02:56.3]} 6. O-O {[%clk 0:02:57.6]} 6... d5 {[%clk 0:02:54.9]}
7. cxd5 {[%clk 0:02:57.6]} 7... Nxd5 {[%clk 0:02:55.2]} 8. a3 {[%clk 0:02:58.1]}
8... O-O {[%clk 0:02:52.2]} 9. Nbd2 {[%clk 0:02:57.5]} 9... b6 {[%clk
0:02:50.6]} 10. Qc2 {[%clk 0:02:54.8]} 10... Bb7 {[%clk 0:02:48.8]} 11. Ne4
{[%clk 0:02:55]} 11... Qd7 {[%clk 0:02:46.1]} 12. Bd2 {[%clk 0:02:55.2]} 12...
Rfd8 {[%clk 0:02:44.5]} 13. Rac1 {[%clk 0:02:55.3]} 13... Rac8 {[%clk
0:02:44.1]} 14. Qb1 {[%clk 0:02:54.2]} 14... Ba6 {[%clk 0:02:43.3]} 15. Rfd1
{[%clk 0:02:53.1]} 15... Nf6 {[%clk 0:02:42.4]} 16. Nxf6+ {[%clk 0:02:48]} 16...
Bxf6 {[%clk 0:02:41.2]} 17. Bc3 {[%clk 0:02:47.8]} 17... Bxc3 {[%clk 0:02:15.5]}
18. Rxc3 {[%clk 0:02:44]} 18... Qd6 {[%clk 0:02:15.8]} 19. h3 {[%clk 0:02:34.5]}
19... e5 {[%clk 0:02:12.1]} 20. Bf1 {[%clk 0:02:29.6]} 20... e4 {[%clk 0:01:57]}
21. Ng5 {[%clk 0:02:09.9]} 21... exd3 {[%clk 0:01:36.1]} 22. Bxd3 {[%clk
0:02:06.9]} 22... Bxd3 {[%clk 0:01:27.2]} 23. Rcxd3 {[%clk 0:02:05.2]} 23... Qe7
{[%clk 0:01:27.5]} 24. Rxd8+ {[%clk 0:01:56.2]} 24... Rxd8 {[%clk 0:01:27.4]}
25. Rxd8+ {[%clk 0:01:52.3]} 25... Qxd8 {[%clk 0:01:27.6]} 26. Ne4 {[%clk
0:01:52.3]} 26... Ne5 {[%clk 0:01:24.9]} 27. Qc1 {[%clk 0:01:13.4]} 27... Qd3
{[%clk 0:01:21]} 28. Nf6+ {[%clk 0:00:56.6]} 28... Kg7 {[%clk 0:01:19.9]} 29.
Ne8+ {[%clk 0:00:56.7]} 29... Kf8 {[%clk 0:01:18.4]} 30. Nf6 {[%clk 0:00:56.9]}
30... Ke7 {[%clk 0:01:07.3]} 31. Ng8+ {[%clk 0:00:43]} 31... Ke6 {[%clk
0:01:04.4]} 32. e4 {[%clk 0:00:31.2]} 32... Qxe4 {[%clk 0:01:00.7]} 33. Qg5
{[%clk 0:00:28.8]} 33... Qe1+ {[%clk 0:00:35.8]} 34. Kh2 {[%clk 0:00:28.9]}
34... Nf3+ {[%clk 0:00:34.3]} 35. gxf3 {[%clk 0:00:25.9]} 35... Qxf2+ {[%clk
0:00:34.6]} 36. Kh1 {[%clk 0:00:24.1]} 36... Qxf3+ {[%clk 0:00:29.4]} 37. Kh2
{[%clk 0:00:24.4]} 37... Qf2+ {[%clk 0:00:27.2]} 38. Kh1 {[%clk 0:00:24]} 38...
Qf3+ {[%clk 0:00:27.6]} 39. Kh2 {[%clk 0:00:24.4]} 39... f6 {[%clk 0:00:26.3]}
40. Qd2 {[%clk 0:00:15.3]} 40... h5 {[%clk 0:00:21]} 41. Qd8 {[%clk 0:00:12.4]}
41... Qf2+ {[%clk 0:00:19.3]} 42. Kh1 {[%clk 0:00:12.4]} 42... Qe1+ {[%clk
0:00:17.7]} 43. Kh2 {[%clk 0:00:12.3]} 43... Qe5+ {[%clk 0:00:17.5]} 44. Kh1
{[%clk 0:00:12.7]} 44... Qxb2 {[%clk 0:00:14.7]} 45. Qe7+ {[%clk 0:00:09.6]}
45... Kf5 {[%clk 0:00:14.8]} 46. Nh6+ {[%clk 0:00:08.8]} 46... Kf4 {[%clk
0:00:14.3]} 47. Qd6+ {[%clk 0:00:07.2]} 47... Qe5 {[%clk 0:00:13.4]} 48. Qd2+
{[%clk 0:00:06.9]} 48... Qe3 {[%clk 0:00:11.1]} 49. Qd6+ {[%clk 0:00:07]} 49...
Ke4 {[%clk 0:00:10.4]} 50. Nf7 {[%clk 0:00:04.6]} 50... Qxh3+ {[%clk 0:00:09]}
51. Kg1 {[%clk 0:00:04.5]} 51... Qg4+ {[%clk 0:00:08.2]} 52. Kh1 {[%clk
0:00:04]} 52... Qf3+ {[%clk 0:00:08]} 53. Kg1 {[%clk 0:00:04.3]} 53... Qe3+
{[%clk 0:00:07.9]} 54. Kh1 {[%clk 0:00:04.5]} 54... Qf3+ {[%clk 0:00:06.4]} 55.
Kg1 {[%clk 0:00:04.6]} 55... Qg4+ {[%clk 0:00:06.8]} 56. Kh1 {[%clk 0:00:04.9]}
56... Qh4+ {[%clk 0:00:06.3]} 57. Kg1 {[%clk 0:00:05.5]} 57... Ke3 {[%clk
0:00:04.9]} 58. Qe6+ {[%clk 0:00:02.2]} 58... Kd3 {[%clk 0:00:05.4]} 59. Nd6
{[%clk 0:00:02]} 59... Qd4+ {[%clk 0:00:04.9]} 60. Kh1 {[%clk 0:00:02.5]} 60...
c4 {[%clk 0:00:04.6]} 61. Nb5 {[%clk 0:00:01.8]} 61... Qe4+ {[%clk 0:00:04.5]}
62. Qxe4+ {[%clk 0:00:01.7]} 62... Kxe4 {[%clk 0:00:05.4]} 63. Nxa7 {[%clk
0:00:02.4]} 63... c3 {[%clk 0:00:05.1]} 0-1

[Event "*** Titled Tuesday Blitz"]
[Site "Chess.com"]
[Date "2020.05.12"]
[Round "7"]
[White "Matalon"]
[Black "Zq1"]
[Result "0-1"]
[WhiteElo "2344"]
[BlackElo "2537"]
[TimeControl "180+1"]
[EndTime "11:17:50 PDT"]
[Termination "Zq1 won by checkmate"]

1. e4 {[%clk 0:03:00.9]} 1... c5 {[%clk 0:02:59.3]} 2. Nf3 {[%clk 0:03:00]} 2...
d6 {[%clk 0:02:59.4]} 3. d4 {[%clk 0:02:58.6]} 3... cxd4 {[%clk 0:02:59.5]} 4.
Nxd4 {[%clk 0:02:59.3]} 4... Nf6 {[%clk 0:02:59.6]} 5. Nc3 {[%clk 0:02:59.9]}
5... Nc6 {[%clk 0:02:59.9]} 6. Bg5 {[%clk 0:02:59.3]} 6... g6 {[%clk 0:02:59.6]}
7. Bxf6 {[%clk 0:02:56.1]} 7... exf6 {[%clk 0:02:58.9]} 8. Bb5 {[%clk
0:02:43.1]} 8... Bd7 {[%clk 0:02:58.3]} 9. O-O {[%clk 0:02:42.7]} 9... Bg7
{[%clk 0:02:51.3]} 10. Nxc6 {[%clk 0:02:27.2]} 10... bxc6 {[%clk 0:02:49]} 11.
Ba4 {[%clk 0:02:16.3]} 11... Qc7 {[%clk 0:02:33.3]} 12. Qd3 {[%clk 0:02:03.9]}
12... Rd8 {[%clk 0:02:31.7]} 13. Rad1 {[%clk 0:02:00.2]} 13... Bg4 {[%clk
0:02:18.4]} 14. f3 {[%clk 0:01:57.6]} 14... Be6 {[%clk 0:02:16.4]} 15. Qa6
{[%clk 0:01:45.3]} 15... Bd7 {[%clk 0:02:09.1]} 16. Qc4 {[%clk 0:01:34.4]} 16...
Qb6+ {[%clk 0:01:43.6]} 17. Qd4 {[%clk 0:01:28.5]} 17... Ke7 {[%clk 0:01:35.4]}
18. Rfe1 {[%clk 0:01:15.2]} 18... Qxd4+ {[%clk 0:01:21.5]} 19. Rxd4 {[%clk
0:01:13]} 19... Rb8 {[%clk 0:01:20.9]} 20. b3 {[%clk 0:00:39.4]} 20... Rhd8
{[%clk 0:01:18]} 21. Rd3 {[%clk 0:00:33]} 21... Be8 {[%clk 0:01:11.6]} 22. Ne2
{[%clk 0:00:30.1]} 22... h5 {[%clk 0:00:58.8]} 23. Nd4 {[%clk 0:00:29.2]} 23...
Rb6 {[%clk 0:00:50.9]} 24. c4 {[%clk 0:00:28.3]} 24... a5 {[%clk 0:00:42.5]} 25.
Red1 {[%clk 0:00:20]} 25... Rc8 {[%clk 0:00:38.6]} 26. Ne2 {[%clk 0:00:17.9]}
26... c5 {[%clk 0:00:35]} 27. Bxe8 {[%clk 0:00:14.6]} 27... Rxe8 {[%clk
0:00:34.3]} 28. Nc3 {[%clk 0:00:15.2]} 28... Rc6 {[%clk 0:00:31.8]} 29. Nb5
{[%clk 0:00:10.6]} 29... Rd8 {[%clk 0:00:31]} 30. Rd5 {[%clk 0:00:10.6]} 30...
Bf8 {[%clk 0:00:25.8]} 31. Kf2 {[%clk 0:00:10]} 31... Ke6 {[%clk 0:00:22]} 32.
a4 {[%clk 0:00:09.7]} 32... Rd7 {[%clk 0:00:18.9]} 33. f4 {[%clk 0:00:09.9]}
33... f5 {[%clk 0:00:18.4]} 34. exf5+ {[%clk 0:00:09.5]} 34... gxf5 {[%clk
0:00:18.3]} 35. Kf3 {[%clk 0:00:08.3]} 35... h4 {[%clk 0:00:16.1]} 36. Re1+
{[%clk 0:00:08.1]} 36... Kf6 {[%clk 0:00:16.2]} 37. Re8 {[%clk 0:00:08.8]} 37...
Bg7 {[%clk 0:00:15.1]} 38. Rd3 {[%clk 0:00:06.5]} 38... Rb6 {[%clk 0:00:15]} 39.
Nc3 {[%clk 0:00:06]} 39... Kg6 {[%clk 0:00:13.6]} 40. Nd5 {[%clk 0:00:05.4]}
40... Rbb7 {[%clk 0:00:13.9]} 41. g3 {[%clk 0:00:05]} 41... h3 {[%clk
0:00:13.3]} 42. g4 {[%clk 0:00:04.8]} 42... fxg4+ {[%clk 0:00:12.8]} 43. Kxg4
{[%clk 0:00:04.7]} 43... f5+ {[%clk 0:00:13.4]} 44. Kxh3 {[%clk 0:00:04.8]}
44... Kf7 {[%clk 0:00:14]} 45. Re2 {[%clk 0:00:03.4]} 45... Bd4 {[%clk
0:00:13.7]} 46. Kg3 {[%clk 0:00:03.2]} 46... Rd8 {[%clk 0:00:13.8]} 47. Rd1
{[%clk 0:00:02.5]} 47... Rg8+ {[%clk 0:00:14.3]} 48. Kf3 {[%clk 0:00:03.1]}
48... Rh8 {[%clk 0:00:14.9]} 49. Rde1 {[%clk 0:00:03.1]} 49... Rd7 {[%clk
0:00:14.7]} 50. Re7+ {[%clk 0:00:02.7]} 50... Rxe7 {[%clk 0:00:14.8]} 51. Rxe7+
{[%clk 0:00:03.2]} 51... Kg6 {[%clk 0:00:14.5]} 52. Kg3 {[%clk 0:00:03.6]} 52...
Kh6 {[%clk 0:00:12.7]} 53. Re6+ {[%clk 0:00:04.1]} 53... Kg7 {[%clk 0:00:12.3]}
54. Rxd6 {[%clk 0:00:03.8]} 54... Re8 {[%clk 0:00:12.9]} 55. Rd7+ {[%clk
0:00:04.5]} 55... Kg6 {[%clk 0:00:12.7]} 56. Rd6+ {[%clk 0:00:04.9]} 56... Kf7
{[%clk 0:00:11.9]} 57. Rd7+ {[%clk 0:00:04.2]} 57... Kg6 {[%clk 0:00:11.7]} 58.
Ra7 {[%clk 0:00:04.7]} 58... Re2 {[%clk 0:00:10.5]} 59. Rxa5 {[%clk 0:00:05.2]}
59... Rd2 {[%clk 0:00:10.5]} 60. Ra6+ {[%clk 0:00:06]} 60... Kh5 {[%clk
0:00:09.5]} 61. a5 {[%clk 0:00:06.5]} 61... Rd3+ {[%clk 0:00:09.1]} 62. Kg2
{[%clk 0:00:05.9]} 62... Rd2+ {[%clk 0:00:09]} 63. Kf1 {[%clk 0:00:05.9]} 63...
Rxh2 {[%clk 0:00:08.3]} 64. Ra8 {[%clk 0:00:05.1]} 64... Kg4 {[%clk 0:00:08.3]}
65. a6 {[%clk 0:00:05.2]} 65... Kf3 {[%clk 0:00:08.4]} 66. Ke1 {[%clk
0:00:05.6]} 66... Ke4 {[%clk 0:00:07.2]} 67. Rd8 {[%clk 0:00:01.4]} 67... Kd3
{[%clk 0:00:07]} 68. Ne7 {[%clk 0:00:01.3]} 68... Rh1# {[%clk 0:00:06.4]} 0-1

[Event "*** Titled Tuesday Blitz"]
[Site "Chess.com"]
[Date "2020.05.12"]
[Round "7"]
[White "Olga_Girya"]
[Black "Sethu0025"]
[Result "1/2-1/2"]
[WhiteElo "2438"]
[BlackElo "2723"]
[TimeControl "180+1"]
[EndTime "11:17:52 PDT"]
[Termination "Game drawn by repetition"]

1. d4 {[%clk 0:02:56.9]} 1... d6 {[%clk 0:02:57.9]} 2. e4 {[%clk 0:02:56.2]}
2... g6 {[%clk 0:02:57.6]} 3. Nc3 {[%clk 0:02:54.5]} 3... Bg7 {[%clk 0:02:57.7]}
4. Be3 {[%clk 0:02:54.3]} 4... a6 {[%clk 0:02:57.7]} 5. Nf3 {[%clk 0:02:45.5]}
5... Nf6 {[%clk 0:02:52.4]} 6. h3 {[%clk 0:02:41.6]} 6... b5 {[%clk 0:02:50.1]}
7. Bd3 {[%clk 0:02:31.4]} 7... Bb7 {[%clk 0:02:50]} 8. e5 {[%clk 0:02:29.3]}
8... dxe5 {[%clk 0:02:40.9]} 9. dxe5 {[%clk 0:02:26.2]} 9... Nd5 {[%clk
0:02:36.8]} 10. Nxd5 {[%clk 0:02:21]} 10... Qxd5 {[%clk 0:02:25.5]} 11. Qe2
{[%clk 0:01:38.5]} 11... Nd7 {[%clk 0:02:02.8]} 12. c4 {[%clk 0:01:13.7]} 12...
Qe6 {[%clk 0:01:43.1]} 13. cxb5 {[%clk 0:01:00.8]} 13... Bxf3 {[%clk 0:01:28.8]}
14. Qxf3 {[%clk 0:00:57.8]} 14... O-O {[%clk 0:01:28.9]} 15. O-O {[%clk
0:00:25.8]} 15... Nxe5 {[%clk 0:01:27]} 16. Qe2 {[%clk 0:00:25.7]} 16... Nxd3
{[%clk 0:01:17.8]} 17. Qxd3 {[%clk 0:00:26.6]} 17... Bxb2 {[%clk 0:01:17.2]} 18.
Rab1 {[%clk 0:00:26.7]} 18... Be5 {[%clk 0:01:17.1]} 19. bxa6 {[%clk 0:00:21.5]}
19... Qxa6 {[%clk 0:01:15]} 20. Qe4 {[%clk 0:00:18.1]} 20... Bf6 {[%clk
0:01:13.9]} 21. Bh6 {[%clk 0:00:17.7]} 21... Rfe8 {[%clk 0:01:11.4]} 22. Rbc1
{[%clk 0:00:17.9]} 22... Rac8 {[%clk 0:01:07.9]} 23. Rc2 {[%clk 0:00:15.1]}
23... c5 {[%clk 0:01:05.6]} 24. Rfc1 {[%clk 0:00:15.2]} 24... Bd4 {[%clk
0:00:45.2]} 25. Be3 {[%clk 0:00:15.2]} 25... e5 {[%clk 0:00:42.9]} 26. Qd5
{[%clk 0:00:14.6]} 26... Rcd8 {[%clk 0:00:42.2]} 27. Qc4 {[%clk 0:00:14.6]}
27... Qf6 {[%clk 0:00:40.3]} 28. Re2 {[%clk 0:00:11.7]} 28... e4 {[%clk
0:00:38.4]} 29. Rce1 {[%clk 0:00:10.6]} 29... Qf5 {[%clk 0:00:33.4]} 30. Qc2
{[%clk 0:00:09.6]} 30... Re6 {[%clk 0:00:27.1]} 31. Kh1 {[%clk 0:00:08.8]} 31...
h5 {[%clk 0:00:26.5]} 32. Kg1 {[%clk 0:00:09]} 32... Kh7 {[%clk 0:00:25.4]} 33.
Rd1 {[%clk 0:00:09.5]} 33... Rd5 {[%clk 0:00:22.1]} 34. Red2 {[%clk 0:00:08.8]}
34... Red6 {[%clk 0:00:20.5]} 35. Qc4 {[%clk 0:00:08.7]} 35... Qe5 {[%clk
0:00:20.2]} 36. Qe2 {[%clk 0:00:07.1]} 36... Qe6 {[%clk 0:00:19.1]} 37. Qe1
{[%clk 0:00:06.6]} 37... Bxe3 {[%clk 0:00:18.6]} 38. Qxe3 {[%clk 0:00:06.7]}
38... Rxd2 {[%clk 0:00:18.2]} 39. Rxd2 {[%clk 0:00:07.1]} 39... Rxd2 {[%clk
0:00:14]} 40. Qxd2 {[%clk 0:00:07.3]} 40... Qc4 {[%clk 0:00:14.3]} 41. Qe3
{[%clk 0:00:06.4]} 41... Qxa2 {[%clk 0:00:09.2]} 42. Qxe4 {[%clk 0:00:06.2]}
42... Qa1+ {[%clk 0:00:09.3]} 43. Kh2 {[%clk 0:00:04.9]} 43... Qd4 {[%clk
0:00:09.4]} 44. Qe7 {[%clk 0:00:04]} 44... Kg7 {[%clk 0:00:09.1]} 45. f3 {[%clk
0:00:02.6]} 45... c4 {[%clk 0:00:08.8]} 46. Qc7 {[%clk 0:00:01.6]} 46... c3
{[%clk 0:00:08.7]} 47. Qc6 {[%clk 0:00:01.9]} 47... Qe5+ {[%clk 0:00:07.9]} 48.
Kh1 {[%clk 0:00:01.7]} 48... Qe1+ {[%clk 0:00:07.8]} 49. Kh2 {[%clk 0:00:02.1]}
49... h4 {[%clk 0:00:07.6]} 50. Qc4 {[%clk 0:00:02.1]} 50... Qe5+ {[%clk
0:00:07]} 51. Kh1 {[%clk 0:00:02.7]} 51... g5 {[%clk 0:00:07.4]} 52. Qc6 {[%clk
0:00:02.5]} 52... f6 {[%clk 0:00:06.7]} 53. Qd7+ {[%clk 0:00:01.7]} 53... Kh6
{[%clk 0:00:06.2]} 54. Qc6 {[%clk 0:00:02.2]} 54... Qe1+ {[%clk 0:00:05.7]} 55.
Kh2 {[%clk 0:00:02]} 55... Qe5+ {[%clk 0:00:06.6]} 56. Kh1 {[%clk 0:00:02.4]}
56... Kg6 {[%clk 0:00:06.7]} 57. Qc8 {[%clk 0:00:02.4]} 57... Qe1+ {[%clk
0:00:05.6]} 58. Kh2 {[%clk 0:00:02.1]} 58... Qe5+ {[%clk 0:00:06.5]} 59. Kh1
{[%clk 0:00:02.5]} 59... Kg7 {[%clk 0:00:06.2]} 60. Qd7+ {[%clk 0:00:02.3]}
60... Kg6 {[%clk 0:00:06.5]} 61. Qc8 {[%clk 0:00:02.6]} 1/2-1/2

[Event "*** Titled Tuesday Blitz"]
[Site "Chess.com"]
[Date "2020.05.12"]
[Round "7"]
[White "sergeikim"]
[Black "AnthonyWirig"]
[Result "1-0"]
[WhiteElo "2439"]
[BlackElo "2573"]
[TimeControl "180+1"]
[EndTime "11:17:54 PDT"]
[Termination "sergeikim won on time"]

1. d4 {[%clk 0:03:00.9]} 1... Nf6 {[%clk 0:02:59.7]} 2. c4 {[%clk 0:03:00.6]}
2... c5 {[%clk 0:02:59.9]} 3. d5 {[%clk 0:03:00]} 3... b5 {[%clk 0:03:00.3]} 4.
cxb5 {[%clk 0:03:00]} 4... a6 {[%clk 0:03:00.7]} 5. b6 {[%clk 0:03:00.9]} 5...
Qxb6 {[%clk 0:03:00.5]} 6. Nc3 {[%clk 0:03:00.9]} 6... d6 {[%clk 0:03:01]} 7. e4
{[%clk 0:03:00.9]} 7... g6 {[%clk 0:03:01.2]} 8. Nf3 {[%clk 0:03:00.8]} 8... Bg7
{[%clk 0:03:01.6]} 9. Be2 {[%clk 0:03:00.6]} 9... O-O {[%clk 0:03:01.7]} 10. O-O
{[%clk 0:02:59.7]} 10... Bd7 {[%clk 0:03:01]} 11. a4 {[%clk 0:02:58]} 11... Bg4
{[%clk 0:02:59.4]} 12. Nd2 {[%clk 0:02:57.1]} 12... Bxe2 {[%clk 0:02:58]} 13.
Qxe2 {[%clk 0:02:57.6]} 13... Nbd7 {[%clk 0:02:58.3]} 14. Nc4 {[%clk 0:02:55.2]}
14... Qb3 {[%clk 0:02:57.2]} 15. Ra3 {[%clk 0:02:44.4]} 15... Qb7 {[%clk
0:02:56.9]} 16. Nd1 {[%clk 0:02:22.6]} 16... Rfe8 {[%clk 0:02:51]} 17. Rh3
{[%clk 0:02:20.9]} 17... Nb6 {[%clk 0:02:47.4]} 18. Bh6 {[%clk 0:01:38.7]} 18...
Nxc4 {[%clk 0:02:43.9]} 19. Bxg7 {[%clk 0:01:34.1]} 19... Kxg7 {[%clk
0:02:42.1]} 20. Qxc4 {[%clk 0:01:33.8]} 20... Reb8 {[%clk 0:02:39.4]} 21. Qc1
{[%clk 0:01:21.2]} 21... h5 {[%clk 0:02:38.4]} 22. Re1 {[%clk 0:01:13.6]} 22...
Qb4 {[%clk 0:02:37.6]} 23. Ne3 {[%clk 0:01:04.6]} 23... Qxe4 {[%clk 0:02:21.2]}
24. Rf3 {[%clk 0:00:58.4]} 24... Qd4 {[%clk 0:01:53]} 25. Rg3 {[%clk 0:00:52.2]}
25... Kh7 {[%clk 0:01:37.3]} 26. Nc4 {[%clk 0:00:20.6]} 26... Qxd5 {[%clk
0:01:19.5]} 27. Rxe7 {[%clk 0:00:17.3]} 27... Re8 {[%clk 0:00:52.9]} 28. Nb6
{[%clk 0:00:16.1]} 28... Qa2 {[%clk 0:00:52.7]} 29. Ra3 {[%clk 0:00:14.8]} 29...
Qxa3 {[%clk 0:00:39.1]} 30. bxa3 {[%clk 0:00:14.8]} 30... Rxe7 {[%clk
0:00:36.4]} 31. Nxa8 {[%clk 0:00:14.2]} 31... Ne4 {[%clk 0:00:25.7]} 32. f3
{[%clk 0:00:12.6]} 32... Nf6 {[%clk 0:00:24.8]} 33. Nb6 {[%clk 0:00:11]} 33...
Re5 {[%clk 0:00:23.3]} 34. Qd2 {[%clk 0:00:10.9]} 34... d5 {[%clk 0:00:23]} 35.
f4 {[%clk 0:00:10.4]} 35... Re4 {[%clk 0:00:21.3]} 36. Nxd5 {[%clk 0:00:09.3]}
36... Ng4 {[%clk 0:00:18.3]} 37. h3 {[%clk 0:00:07.3]} 37... Rd4 {[%clk
0:00:18.3]} 38. Qe1 {[%clk 0:00:05.6]} 38... Rxd5 {[%clk 0:00:15.8]} 39. hxg4
{[%clk 0:00:06]} 39... hxg4 {[%clk 0:00:16.7]} 40. Qh4+ {[%clk 0:00:03.6]} 40...
Kg7 {[%clk 0:00:17.1]} 41. Qxg4 {[%clk 0:00:04.1]} 41... Rd4 {[%clk 0:00:17.8]}
42. Qg5 {[%clk 0:00:03.9]} 42... Rxa4 {[%clk 0:00:18]} 43. Qxc5 {[%clk
0:00:03.2]} 43... Kg8 {[%clk 0:00:17.4]} 44. Qd6 {[%clk 0:00:02.4]} 44... Kh7
{[%clk 0:00:16]} 45. Kh2 {[%clk 0:00:03.3]} 45... Kg8 {[%clk 0:00:15.6]} 46. Kg3
{[%clk 0:00:03.8]} 46... a5 {[%clk 0:00:14.5]} 47. Kg4 {[%clk 0:00:04.2]} 47...
Re4 {[%clk 0:00:12.6]} 48. Kg5 {[%clk 0:00:04]} 48... Re8 {[%clk 0:00:10.2]} 49.
Qd7 {[%clk 0:00:03.6]} 49... Rb8 {[%clk 0:00:09.4]} 50. g4 {[%clk 0:00:01.9]}
50... Ra8 {[%clk 0:00:07.9]} 51. f5 {[%clk 0:00:02.4]} 51... gxf5 {[%clk
0:00:07.7]} 52. gxf5 {[%clk 0:00:03]} 52... a4 {[%clk 0:00:08.6]} 53. f6 {[%clk
0:00:03.2]} 53... Rb8 {[%clk 0:00:07.3]} 54. Kh6 {[%clk 0:00:03.5]} 54... Ra8
{[%clk 0:00:05.3]} 55. Qd5 {[%clk 0:00:03.1]} 55... Rd8 {[%clk 0:00:03.3]} 56.
Qg5+ {[%clk 0:00:03.7]} 56... Kf8 {[%clk 0:00:03.2]} 57. Qg7+ {[%clk 0:00:04.5]}
57... Ke8 {[%clk 0:00:04.1]} 58. Qg8+ {[%clk 0:00:04.7]} 58... Kd7 {[%clk
0:00:05]} 59. Qxf7+ {[%clk 0:00:05.3]} 59... Kc6 {[%clk 0:00:05.2]} 60. Qe7
{[%clk 0:00:05.8]} 60... Rd6 {[%clk 0:00:06.1]} 61. Kh7 {[%clk 0:00:04.3]} 61...
Kb5 {[%clk 0:00:02.4]} 62. f7 {[%clk 0:00:03.2]} 1-0